[Event "Titled Tuesday Blitz February 15 Early 2022"]
[White "Garagulya, Konstantin"]
[Black "Gaehwiler, Gabriel"]
[WhiteFideId "4128931"]
[BlackFideId "1314530"]
[WhiteElo "2329"]
[BlackElo "2383"]
[Result "0-1"]
[Round "10"]
[TimeControl "180+1"]
[Date "2022.02.15"]
[WhiteClock "0:00:03"]
[BlackClock "0:00:05"]

1. d4 {[%clk 0:03:00]}  Nf6 {[%clk 0:03:00]} 2. Nf3 {[%clk 0:03:01]}  g6 {[%clk 0:03:00]} 3. Nc3 {[%clk 0:03:01]}  d5 {[%clk 0:02:55]} 4. Bf4 {[%clk 0:03:01]}  c6 {[%clk 0:02:54]} 5. e3 {[%clk 0:03:01]}  Bg4 {[%clk 0:02:53]} 6. h3 {[%clk 0:03:00]}  Bxf3 {[%clk 0:02:53]} 7. Qxf3 {[%clk 0:03:01]}  Nbd7 {[%clk 0:02:50]} 8. g4 {[%clk 0:03:00]}  Bg7 {[%clk 0:02:48]} 9. Qg3 {[%clk 0:03:01]}  Qa5 {[%clk 0:02:33]} 10. O-O-O {[%clk 0:02:58]}  b5 {[%clk 0:02:28]} 11. a3 {[%clk 0:02:45]}  b4 {[%clk 0:02:19]} 12. axb4 {[%clk 0:02:45]}  Qxb4 {[%clk 0:02:13]} 13. Bd3 {[%clk 0:02:40]}  O-O {[%clk 0:02:02]} 14. h4 {[%clk 0:02:36]}  Rfb8 {[%clk 0:01:31]} 15. Bxb8 {[%clk 0:02:34]}  Rxb8 {[%clk 0:01:32]} 16. h5 {[%clk 0:02:29]}  e5 {[%clk 0:01:23]} 17. dxe5 {[%clk 0:02:05]}  Nxg4 {[%clk 0:01:14]} 18. f4 {[%clk 0:01:26]}  Ngxe5 {[%clk 0:00:52]} 19. fxe5 {[%clk 0:01:19]}  Bxe5 {[%clk 0:00:49]} 20. Qh3 {[%clk 0:01:06]}  Qxb2+ {[%clk 0:00:42]} 21. Kd2 {[%clk 0:01:07]}  Qxc3+ {[%clk 0:00:41]} 22. Ke2 {[%clk 0:01:08]}  Nf8 {[%clk 0:00:35]} 23. hxg6 {[%clk 0:01:02]}  hxg6 {[%clk 0:00:32]} 24. Rdg1 {[%clk 0:01:00]}  Bg7 {[%clk 0:00:18]} 25. Rg4 {[%clk 0:00:35]}  Re8 {[%clk 0:00:14]} 26. Rg3 {[%clk 0:00:18]}  a5 {[%clk 0:00:14]} 27. Rb1 {[%clk 0:00:14]}  a4 {[%clk 0:00:13]} 28. Rb7 {[%clk 0:00:14]}  a3 {[%clk 0:00:12]} 29. Qf1 {[%clk 0:00:14]}  Qf6 {[%clk 0:00:09]} 30. Rf3 {[%clk 0:00:14]}  Qe6 {[%clk 0:00:08]} 31. Rbxf7 {[%clk 0:00:12]}  a2 {[%clk 0:00:08]} 32. Rxg7+ {[%clk 0:00:12]}  Kxg7 {[%clk 0:00:08]} 33. Qa1+ {[%clk 0:00:13]}  Qe5 {[%clk 0:00:08]} 34. Qxa2 {[%clk 0:00:13]}  Re7 {[%clk 0:00:08]} 35. Qa4 {[%clk 0:00:11]}  Ne6 {[%clk 0:00:07]} 36. Kd2 {[%clk 0:00:10]}  Qh2+ {[%clk 0:00:06]} 37. Kc3 {[%clk 0:00:09]}  Qe5+ {[%clk 0:00:05]} 38. Kd2 {[%clk 0:00:09]}  d4 {[%clk 0:00:05]} 39. exd4 {[%clk 0:00:05]}  Nxd4 {[%clk 0:00:05]} 40. Rh3 {[%clk 0:00:03]}  Qe1# {[%clk 0:00:05]} 0-1


[Site "https://www.chess.com"]

[Event "Titled Tuesday Blitz February 15 Early 2022"]
[White "Gelman, Alexander"]
[Black "Ratnakaran, K."]
[WhiteFideId "4118316"]
[BlackFideId "5005507"]
[WhiteElo "2375"]
[BlackElo "2391"]
[Result "0-1"]
[Round "10"]
[TimeControl "180+1"]
[Date "2022.02.15"]
[WhiteClock "0:00:04"]
[BlackClock "0:01:36"]

1. d4 {[%clk 0:03:00]}  Nf6 {[%clk 0:02:57]} 2. Nc3 {[%clk 0:03:01]}  c5 {[%clk 0:02:57]} 3. d5 {[%clk 0:03:01]}  d6 {[%clk 0:02:57]} 4. e4 {[%clk 0:03:01]}  a6 {[%clk 0:02:58]} 5. a4 {[%clk 0:03:01]}  g6 {[%clk 0:02:58]} 6. f4 {[%clk 0:03:01]}  Bg7 {[%clk 0:02:58]} 7. Nf3 {[%clk 0:03:02]}  O-O {[%clk 0:02:58]} 8. e5 {[%clk 0:03:02]}  dxe5 {[%clk 0:02:57]} 9. fxe5 {[%clk 0:03:02]}  Ng4 {[%clk 0:02:57]} 10. Bf4 {[%clk 0:03:02]}  Nd7 {[%clk 0:02:57]} 11. Qe2 {[%clk 0:03:01]}  Nb6 {[%clk 0:02:57]} 12. O-O-O {[%clk 0:02:57]}  c4 {[%clk 0:02:55]} 13. h3 {[%clk 0:02:49]}  Nh6 {[%clk 0:02:54]} 14. g4 {[%clk 0:02:47]}  Kh8 {[%clk 0:02:50]} 15. Qe3 {[%clk 0:02:38]}  Ng8 {[%clk 0:02:49]} 16. Kb1 {[%clk 0:02:24]}  Bd7 {[%clk 0:02:46]} 17. a5 {[%clk 0:02:06]}  Na4 {[%clk 0:02:44]} 18. Nxa4 {[%clk 0:02:05]}  Bxa4 {[%clk 0:02:44]} 19. h4 {[%clk 0:02:01]}  Qxa5 {[%clk 0:02:43]} 20. h5 {[%clk 0:01:59]}  c3 {[%clk 0:02:40]} 21. Ng5 {[%clk 0:01:34]}  Nh6 {[%clk 0:02:15]} 22. Ne4 {[%clk 0:00:42]}  Nxg4 {[%clk 0:02:12]} 23. Qg3 {[%clk 0:00:36]}  Rfc8 {[%clk 0:02:07]} 24. Nxc3 {[%clk 0:00:29]}  Rxc3 {[%clk 0:02:04]} 25. bxc3 {[%clk 0:00:27]}  Rc8 {[%clk 0:01:56]} 26. hxg6 {[%clk 0:00:24]}  Rxc3 {[%clk 0:01:52]} 27. Rxh7+ {[%clk 0:00:19]}  Kg8 {[%clk 0:01:51]} 28. gxf7+ {[%clk 0:00:15]}  Kf8 {[%clk 0:01:48]} 29. Bd3 {[%clk 0:00:07]}  Bxc2+ {[%clk 0:01:42]} 30. Bxc2 {[%clk 0:00:07]}  Qb4+ {[%clk 0:01:40]} 31. Kc1 {[%clk 0:00:07]}  Qa3+ {[%clk 0:01:39]} 32. Kd2 {[%clk 0:00:07]}  Rxg3 {[%clk 0:01:39]} 33. Bxg3 {[%clk 0:00:06]}  Qxg3 {[%clk 0:01:38]} 34. Rdh1 {[%clk 0:00:04]}  Qe3+ {[%clk 0:01:35]} 35. Kd1 {[%clk 0:00:04]}  Nf2# {[%clk 0:01:36]} 0-1


[Site "https://www.chess.com"]

[Event "Titled Tuesday Blitz February 15 Early 2022"]
[White "Guliyev, Namig"]
[Black "Gabdrakhmanov, Azat"]
[WhiteFideId "13400363"]
[BlackFideId "34189197"]
[WhiteElo "2487"]
[BlackElo "2279"]
[Result "1-0"]
[Round "10"]
[TimeControl "180+1"]
[Date "2022.02.15"]
[WhiteClock "0:01:14"]
[BlackClock "0:00:20"]

1. e4 {[%clk 0:03:00]}  c5 {[%clk 0:02:59]} 2. Nf3 {[%clk 0:03:00]}  e6 {[%clk 0:03:00]} 3. d4 {[%clk 0:02:59]}  cxd4 {[%clk 0:03:00]} 4. Nxd4 {[%clk 0:03:00]}  a6 {[%clk 0:03:00]} 5. Bd3 {[%clk 0:02:59]}  Nf6 {[%clk 0:02:59]} 6. O-O {[%clk 0:02:59]}  d6 {[%clk 0:02:59]} 7. Qe2 {[%clk 0:02:58]}  Be7 {[%clk 0:02:58]} 8. c4 {[%clk 0:02:59]}  Nbd7 {[%clk 0:02:57]} 9. Nc3 {[%clk 0:02:59]}  Qc7 {[%clk 0:02:57]} 10. b3 {[%clk 0:03:00]}  b6 {[%clk 0:02:57]} 11. Bb2 {[%clk 0:03:00]}  Bb7 {[%clk 0:02:57]} 12. Rae1 {[%clk 0:03:01]}  O-O {[%clk 0:02:57]} 13. f4 {[%clk 0:03:01]}  e5 {[%clk 0:02:53]} 14. Nf5 {[%clk 0:03:00]}  Rfe8 {[%clk 0:02:53]} 15. Nd5 {[%clk 0:03:00]}  Bxd5 {[%clk 0:02:47]} 16. exd5 {[%clk 0:03:01]}  Bf8 {[%clk 0:02:46]} 17. g4 {[%clk 0:02:57]}  g6 {[%clk 0:02:21]} 18. g5 {[%clk 0:02:51]}  Nh5 {[%clk 0:02:17]} 19. fxe5 {[%clk 0:02:44]}  Nxe5 {[%clk 0:02:14]} 20. Bb1 {[%clk 0:02:27]}  b5 {[%clk 0:02:00]} 21. cxb5 {[%clk 0:02:07]}  axb5 {[%clk 0:02:01]} 22. Nd4 {[%clk 0:01:59]}  Bg7 {[%clk 0:01:50]} 23. Nxb5 {[%clk 0:01:55]}  Qd8 {[%clk 0:01:46]} 24. Qg2 {[%clk 0:01:44]}  Qb6+ {[%clk 0:01:39]} 25. Nd4 {[%clk 0:01:43]}  Nd3 {[%clk 0:01:03]} 26. Rxe8+ {[%clk 0:01:39]}  Rxe8 {[%clk 0:01:02]} 27. Bxd3 {[%clk 0:01:37]}  Bxd4+ {[%clk 0:01:02]} 28. Kh1 {[%clk 0:01:35]}  Bxb2 {[%clk 0:00:30]} 29. Qxb2 {[%clk 0:01:36]}  Qc5 {[%clk 0:00:31]} 30. Bc4 {[%clk 0:01:33]}  Qe3 {[%clk 0:00:29]} 31. Qf2 {[%clk 0:01:31]}  Qe4+ {[%clk 0:00:29]} 32. Qf3 {[%clk 0:01:32]}  Qe7 {[%clk 0:00:28]} 33. a4 {[%clk 0:01:30]}  Ng7 {[%clk 0:00:27]} 34. a5 {[%clk 0:01:24]}  Nf5 {[%clk 0:00:27]} 35. Qf4 {[%clk 0:01:21]}  Qa7 {[%clk 0:00:22]} 36. a6 {[%clk 0:01:21]}  Re3 {[%clk 0:00:19]} 37. Qf2 {[%clk 0:01:15]}  Re8 {[%clk 0:00:19]} 38. Qxa7 {[%clk 0:01:15]}  Re7 {[%clk 0:00:20]} 39. Qxe7 {[%clk 0:01:14]} 1-0


[Site "https://www.chess.com"]

[Event "Titled Tuesday Blitz February 15 Early 2022"]
[White "Guseva, Marina"]
[Black "Dew, Brian"]
[WhiteFideId "4149351"]
[BlackFideId "6000495"]
[WhiteElo "2232"]
[BlackElo "2118"]
[Result "1-0"]
[Round "10"]
[TimeControl "180+1"]
[Date "2022.02.15"]
[WhiteClock "0:00:12"]
[BlackClock "0:00:05"]

1. d4 {[%clk 0:03:00]}  Nf6 {[%clk 0:02:58]} 2. Nf3 {[%clk 0:02:59]}  g6 {[%clk 0:02:57]} 3. g3 {[%clk 0:02:54]}  Bg7 {[%clk 0:02:57]} 4. Bg2 {[%clk 0:02:54]}  d6 {[%clk 0:02:57]} 5. O-O {[%clk 0:02:54]}  O-O {[%clk 0:02:58]} 6. c4 {[%clk 0:02:53]}  Nc6 {[%clk 0:02:48]} 7. Nc3 {[%clk 0:02:52]}  a6 {[%clk 0:02:36]} 8. e3 {[%clk 0:02:42]}  Rb8 {[%clk 0:02:36]} 9. Qe2 {[%clk 0:02:41]}  e5 {[%clk 0:02:29]} 10. dxe5 {[%clk 0:02:38]}  dxe5 {[%clk 0:02:25]} 11. Rd1 {[%clk 0:02:37]}  Qe8 {[%clk 0:02:21]} 12. Nd5 {[%clk 0:02:26]}  Nxd5 {[%clk 0:02:14]} 13. cxd5 {[%clk 0:02:25]}  Ne7 {[%clk 0:02:09]} 14. e4 {[%clk 0:01:57]}  Bg4 {[%clk 0:02:08]} 15. h3 {[%clk 0:01:43]}  Bxf3 {[%clk 0:02:08]} 16. Qxf3 {[%clk 0:01:41]}  Nc8 {[%clk 0:02:08]} 17. b3 {[%clk 0:01:37]}  Nd6 {[%clk 0:02:08]} 18. Ba3 {[%clk 0:01:33]}  Bh6 {[%clk 0:02:00]} 19. Bb2 {[%clk 0:01:06]}  f6 {[%clk 0:01:55]} 20. a4 {[%clk 0:01:05]}  Rd8 {[%clk 0:01:46]} 21. Qc3 {[%clk 0:00:59]}  Rc8 {[%clk 0:01:32]} 22. b4 {[%clk 0:00:58]}  c6 {[%clk 0:01:29]} 23. Qb3 {[%clk 0:00:54]}  Qf7 {[%clk 0:01:18]} 24. Bc1 {[%clk 0:00:52]}  Bxc1 {[%clk 0:01:14]} 25. Raxc1 {[%clk 0:00:51]}  cxd5 {[%clk 0:01:15]} 26. Rxc8 {[%clk 0:00:48]}  Rxc8 {[%clk 0:01:12]} 27. Rxd5 {[%clk 0:00:47]}  Rc1+ {[%clk 0:00:57]} 28. Kh2 {[%clk 0:00:47]}  Rc6 {[%clk 0:00:37]} 29. f4 {[%clk 0:00:39]}  Ne8 {[%clk 0:00:25]} 30. fxe5 {[%clk 0:00:33]}  fxe5 {[%clk 0:00:24]} 31. Qb2 {[%clk 0:00:32]}  Rc4 {[%clk 0:00:12]} 32. Qxe5 {[%clk 0:00:30]}  Rxb4 {[%clk 0:00:11]} 33. Rd8 {[%clk 0:00:29]}  Kf8 {[%clk 0:00:08]} 34. Qh8+ {[%clk 0:00:18]}  Ke7 {[%clk 0:00:08]} 35. Rb8 {[%clk 0:00:16]}  Rb6 {[%clk 0:00:08]} 36. Qd4 {[%clk 0:00:13]}  Re6 {[%clk 0:00:05]} 37. Rxb7+ {[%clk 0:00:12]} 1-0


[Site "https://www.chess.com"]

[Event "Titled Tuesday Blitz February 15 Early 2022"]
[White "Hakemi, Arman"]
[Black "Kopylov, Alexander A."]
[WhiteFideId "22520805"]
[BlackFideId "4164857"]
[WhiteElo "2208"]
[BlackElo "2436"]
[Result "0-1"]
[Round "10"]
[TimeControl "180+1"]
[Date "2022.02.15"]
[WhiteClock "0:00:17"]
[BlackClock "0:00:37"]

1. e4 {[%clk 0:03:00]}  c6 {[%clk 0:02:59]} 2. d4 {[%clk 0:03:00]}  d5 {[%clk 0:03:00]} 3. e5 {[%clk 0:02:56]}  Bf5 {[%clk 0:03:00]} 4. Nf3 {[%clk 0:02:56]}  e6 {[%clk 0:03:00]} 5. Be2 {[%clk 0:02:56]}  Ne7 {[%clk 0:03:00]} 6. O-O {[%clk 0:02:56]}  Bg6 {[%clk 0:03:01]} 7. c3 {[%clk 0:02:50]}  Nf5 {[%clk 0:03:01]} 8. Nbd2 {[%clk 0:02:48]}  Be7 {[%clk 0:03:01]} 9. a4 {[%clk 0:02:42]}  O-O {[%clk 0:03:01]} 10. a5 {[%clk 0:02:37]}  Nd7 {[%clk 0:03:01]} 11. b4 {[%clk 0:02:37]}  Qc7 {[%clk 0:03:01]} 12. Ne1 {[%clk 0:02:35]}  f6 {[%clk 0:03:00]} 13. exf6 {[%clk 0:02:30]}  Bxf6 {[%clk 0:03:00]} 14. Nd3 {[%clk 0:02:30]}  e5 {[%clk 0:03:00]} 15. dxe5 {[%clk 0:02:30]}  Nxe5 {[%clk 0:03:00]} 16. Bb2 {[%clk 0:02:25]}  Ne3 {[%clk 0:02:52]} 17. fxe3 {[%clk 0:02:23]}  Nxd3 {[%clk 0:02:52]} 18. Bxd3 {[%clk 0:02:18]}  Bxd3 {[%clk 0:02:53]} 19. Rf2 {[%clk 0:02:19]}  Rae8 {[%clk 0:02:53]} 20. Nf3 {[%clk 0:02:18]}  Bg6 {[%clk 0:02:47]} 21. Qd2 {[%clk 0:02:15]}  Re7 {[%clk 0:02:40]} 22. Re1 {[%clk 0:02:15]}  Rfe8 {[%clk 0:02:40]} 23. Rfe2 {[%clk 0:02:11]}  Bh5 {[%clk 0:02:40]} 24. Rf1 {[%clk 0:02:05]}  a6 {[%clk 0:02:30]} 25. Ree1 {[%clk 0:01:59]}  Bxf3 {[%clk 0:02:24]} 26. Rxf3 {[%clk 0:01:59]}  Re4 {[%clk 0:02:23]} 27. Ref1 {[%clk 0:01:54]}  Bg5 {[%clk 0:02:22]} 28. Re1 {[%clk 0:01:42]}  Qe7 {[%clk 0:02:16]} 29. Bc1 {[%clk 0:01:41]}  Qe5 {[%clk 0:02:16]} 30. Qd3 {[%clk 0:01:39]}  Bf6 {[%clk 0:02:13]} 31. Bd2 {[%clk 0:01:39]}  Be7 {[%clk 0:02:13]} 32. Ref1 {[%clk 0:01:39]}  Bd6 {[%clk 0:02:13]} 33. g3 {[%clk 0:01:39]}  h5 {[%clk 0:02:13]} 34. Rf5 {[%clk 0:01:38]}  Qe6 {[%clk 0:02:05]} 35. Rxh5 {[%clk 0:01:37]}  Qg4 {[%clk 0:02:01]} 36. Rh4 {[%clk 0:01:35]}  Qg6 {[%clk 0:01:51]} 37. Kg2 {[%clk 0:01:25]}  R8e6 {[%clk 0:01:44]} 38. Rxe4 {[%clk 0:01:07]}  Rxe4 {[%clk 0:01:44]} 39. Qe2 {[%clk 0:01:05]}  Re6 {[%clk 0:01:35]} 40. Qf3 {[%clk 0:01:04]}  Rf6 {[%clk 0:01:35]} 41. Qe2 {[%clk 0:01:04]}  Qe4+ {[%clk 0:01:35]} 42. Kg1 {[%clk 0:01:04]}  Rh6 {[%clk 0:01:28]} 43. Qf3 {[%clk 0:01:01]}  Qe8 {[%clk 0:01:12]} 44. Qg4 {[%clk 0:00:56]}  Rg6 {[%clk 0:01:09]} 45. Qf3 {[%clk 0:00:54]}  Rf6 {[%clk 0:01:02]} 46. Qe2 {[%clk 0:00:54]}  Rh6 {[%clk 0:01:01]} 47. Qf3 {[%clk 0:00:46]}  Qe6 {[%clk 0:00:58]} 48. Qf5 {[%clk 0:00:43]}  Qe8 {[%clk 0:00:57]} 49. Qd3 {[%clk 0:00:38]}  Qh5 {[%clk 0:00:46]} 50. Rf2 {[%clk 0:00:16]}  Bxg3 {[%clk 0:00:46]} 51. Rg2 {[%clk 0:00:16]}  Bxh2+ {[%clk 0:00:46]} 52. Kf1 {[%clk 0:00:17]}  Qh3 {[%clk 0:00:39]} 53. Be1 {[%clk 0:00:15]}  Rf6+ {[%clk 0:00:39]} 54. Bf2 {[%clk 0:00:15]}  Bg3 {[%clk 0:00:37]} 55. Kg1 {[%clk 0:00:16]}  Bxf2+ {[%clk 0:00:36]} 56. Rxf2 {[%clk 0:00:17]}  Qg3+ {[%clk 0:00:36]} 57. Rg2 {[%clk 0:00:17]}  Qe1+ {[%clk 0:00:37]} 58. Kh2 {[%clk 0:00:17]}  Rh6# {[%clk 0:00:37]} 0-1


[Site "https://www.chess.com"]

[Event "Titled Tuesday Blitz February 15 Early 2022"]
[White "Ianov, Viktor"]
[Black "Arabidze, Meri"]
[WhiteFideId "14102730"]
[BlackFideId "13604040"]
[WhiteElo "2215"]
[BlackElo "2329"]
[Result "0-1"]
[Round "10"]
[TimeControl "180+1"]
[Date "2022.02.15"]
[WhiteClock "0:00:50"]
[BlackClock "0:01:08"]

1. Nf3 {[%clk 0:03:00]}  d5 {[%clk 0:02:59]} 2. g3 {[%clk 0:03:00]}  Nf6 {[%clk 0:03:00]} 3. Bg2 {[%clk 0:03:00]}  g6 {[%clk 0:03:01]} 4. b3 {[%clk 0:02:59]}  Bg7 {[%clk 0:03:01]} 5. Bb2 {[%clk 0:02:59]}  O-O {[%clk 0:03:02]} 6. c4 {[%clk 0:02:59]}  c6 {[%clk 0:03:02]} 7. O-O {[%clk 0:02:58]}  a5 {[%clk 0:03:00]} 8. Nc3 {[%clk 0:02:56]}  Na6 {[%clk 0:03:00]} 9. d3 {[%clk 0:02:55]}  Re8 {[%clk 0:02:56]} 10. Rc1 {[%clk 0:02:55]}  e5 {[%clk 0:02:56]} 11. cxd5 {[%clk 0:02:54]}  Nxd5 {[%clk 0:02:56]} 12. Qd2 {[%clk 0:02:49]}  h6 {[%clk 0:02:48]} 13. Rfd1 {[%clk 0:02:49]}  Bg4 {[%clk 0:02:45]} 14. h3 {[%clk 0:02:47]}  Be6 {[%clk 0:02:46]} 15. Kh2 {[%clk 0:02:45]}  Nab4 {[%clk 0:02:43]} 16. a3 {[%clk 0:02:39]}  Na6 {[%clk 0:02:40]} 17. Qc2 {[%clk 0:02:39]}  Nxc3 {[%clk 0:02:35]} 18. Bxc3 {[%clk 0:02:37]}  Nc5 {[%clk 0:02:32]} 19. Nd2 {[%clk 0:02:36]}  a4 {[%clk 0:02:24]} 20. b4 {[%clk 0:02:32]}  Nb3 {[%clk 0:02:24]} 21. Rb1 {[%clk 0:02:27]}  Nd4 {[%clk 0:02:20]} 22. Bxd4 {[%clk 0:02:25]}  exd4 {[%clk 0:02:20]} 23. Nc4 {[%clk 0:02:18]}  h5 {[%clk 0:02:01]} 24. h4 {[%clk 0:02:13]}  Bg4 {[%clk 0:02:00]} 25. Re1 {[%clk 0:02:12]}  Qf6 {[%clk 0:01:40]} 26. Kg1 {[%clk 0:02:11]}  Re7 {[%clk 0:01:36]} 27. Rb2 {[%clk 0:01:59]}  Rae8 {[%clk 0:01:33]} 28. Qd1 {[%clk 0:01:52]}  g5 {[%clk 0:01:28]} 29. hxg5 {[%clk 0:01:50]}  Qxg5 {[%clk 0:01:29]} 30. Qd2 {[%clk 0:01:42]}  Qg6 {[%clk 0:01:22]} 31. Qd1 {[%clk 0:01:35]}  h4 {[%clk 0:01:20]} 32. Na5 {[%clk 0:01:21]}  hxg3 {[%clk 0:01:18]} 33. fxg3 {[%clk 0:01:21]}  Bh6 {[%clk 0:01:17]} 34. Nc4 {[%clk 0:01:02]}  b5 {[%clk 0:01:17]} 35. Nd2 {[%clk 0:00:58]}  Be3+ {[%clk 0:01:16]} 36. Kf1 {[%clk 0:00:58]}  Qd6 {[%clk 0:01:09]} 37. Ne4 {[%clk 0:00:50]}  Rxe4 {[%clk 0:01:08]} 0-1


[Site "https://www.chess.com"]

[Event "Titled Tuesday Blitz February 15 Early 2022"]
[White "Jakubowska, Anna"]
[Black "Bhagwat, Vinod"]
[WhiteFideId "1121952"]
[BlackFideId "5005949"]
[WhiteElo "1924"]
[BlackElo "2115"]
[Result "1-0"]
[Round "10"]
[TimeControl "180+1"]
[Date "2022.02.15"]
[WhiteClock "0:00:43"]
[BlackClock "0:00:10"]

1. e4 {[%clk 0:03:00]}  e5 {[%clk 0:02:58]} 2. Nf3 {[%clk 0:02:57]}  Nc6 {[%clk 0:02:59]} 3. Bb5 {[%clk 0:02:57]}  a6 {[%clk 0:02:58]} 4. Ba4 {[%clk 0:02:58]}  Nf6 {[%clk 0:02:58]} 5. O-O {[%clk 0:02:58]}  Be7 {[%clk 0:02:58]} 6. d3 {[%clk 0:02:58]}  b5 {[%clk 0:02:57]} 7. Bb3 {[%clk 0:02:58]}  O-O {[%clk 0:02:57]} 8. a4 {[%clk 0:02:54]}  Rb8 {[%clk 0:02:56]} 9. axb5 {[%clk 0:02:53]}  axb5 {[%clk 0:02:56]} 10. Bg5 {[%clk 0:02:42]}  d6 {[%clk 0:02:56]} 11. h3 {[%clk 0:02:41]}  Nd7 {[%clk 0:02:54]} 12. Bxe7 {[%clk 0:02:36]}  Nxe7 {[%clk 0:02:51]} 13. Nc3 {[%clk 0:02:37]}  Nc5 {[%clk 0:02:49]} 14. Ba2 {[%clk 0:02:35]}  b4 {[%clk 0:02:40]} 15. Nd5 {[%clk 0:02:35]}  b3 {[%clk 0:02:39]} 16. Nxe7+ {[%clk 0:02:32]}  Qxe7 {[%clk 0:02:38]} 17. cxb3 {[%clk 0:02:33]}  Be6 {[%clk 0:02:31]} 18. d4 {[%clk 0:02:25]}  exd4 {[%clk 0:02:04]} 19. Qxd4 {[%clk 0:02:23]}  Nxb3 {[%clk 0:01:52]} 20. Bxb3 {[%clk 0:02:23]}  c5 {[%clk 0:01:34]} 21. Qd2 {[%clk 0:02:13]}  Rxb3 {[%clk 0:01:27]} 22. Ra6 {[%clk 0:02:07]}  Bc4 {[%clk 0:01:25]} 23. Qxd6 {[%clk 0:01:45]}  Qxd6 {[%clk 0:01:25]} 24. Rxd6 {[%clk 0:01:46]}  Bxf1 {[%clk 0:01:24]} 25. Kxf1 {[%clk 0:01:46]}  Rxb2 {[%clk 0:01:24]} 26. Ne5 {[%clk 0:01:41]}  Re8 {[%clk 0:01:08]} 27. f4 {[%clk 0:01:40]}  f6 {[%clk 0:01:05]} 28. Nd3 {[%clk 0:01:39]}  Rb1+ {[%clk 0:00:58]} 29. Kf2 {[%clk 0:01:40]}  Rxe4 {[%clk 0:00:57]} 30. Nxc5 {[%clk 0:01:40]}  Rxf4+ {[%clk 0:00:57]} 31. Ke3 {[%clk 0:01:34]}  Rc4 {[%clk 0:00:49]} 32. Ne6 {[%clk 0:01:26]}  Kf7 {[%clk 0:00:47]} 33. Nf4 {[%clk 0:01:23]}  Rb3+ {[%clk 0:00:40]} 34. Nd3 {[%clk 0:01:21]}  Rc2 {[%clk 0:00:36]} 35. g4 {[%clk 0:00:51]}  Rh2 {[%clk 0:00:32]} 36. Ke4 {[%clk 0:00:51]}  Re2+ {[%clk 0:00:18]} 37. Kf3 {[%clk 0:00:50]}  Re7 {[%clk 0:00:15]} 38. Kf4 {[%clk 0:00:46]}  g5+ {[%clk 0:00:13]} 39. Kf3 {[%clk 0:00:45]}  Ke8 {[%clk 0:00:11]} 40. Kf2 {[%clk 0:00:44]}  Rd7 {[%clk 0:00:10]} 41. Rxd7 {[%clk 0:00:43]} 1-0


[Site "https://www.chess.com"]

[Event "Titled Tuesday Blitz February 15 Early 2022"]
[White "Janaszak, Dawid"]
[Black "Przybylski, Wojciech"]
[WhiteFideId "1119206"]
[BlackFideId "1117599"]
[WhiteElo "2199"]
[BlackElo "2133"]
[Result "0-1"]
[Round "10"]
[TimeControl "180+1"]
[Date "2022.02.15"]
[WhiteClock "0:00:05"]
[BlackClock "0:00:03"]

1. e4 {[%clk 0:03:00]}  e5 {[%clk 0:02:57]} 2. Ne2 {[%clk 0:03:00]}  Nf6 {[%clk 0:02:54]} 3. f4 {[%clk 0:02:59]}  d5 {[%clk 0:02:47]} 4. fxe5 {[%clk 0:02:55]}  Nxe4 {[%clk 0:02:46]} 5. d3 {[%clk 0:02:53]}  Nc5 {[%clk 0:02:45]} 6. Be3 {[%clk 0:02:44]}  Be7 {[%clk 0:02:41]} 7. Qd2 {[%clk 0:02:39]}  O-O {[%clk 0:02:40]} 8. Nbc3 {[%clk 0:02:30]}  Nc6 {[%clk 0:02:40]} 9. d4 {[%clk 0:02:30]}  Ne6 {[%clk 0:02:36]} 10. h4 {[%clk 0:02:25]}  f6 {[%clk 0:02:29]} 11. exf6 {[%clk 0:02:21]}  Bxf6 {[%clk 0:02:29]} 12. g3 {[%clk 0:02:20]}  Ne7 {[%clk 0:02:22]} 13. Bh3 {[%clk 0:02:18]}  c6 {[%clk 0:02:18]} 14. O-O-O {[%clk 0:02:17]}  b5 {[%clk 0:02:17]} 15. Rdf1 {[%clk 0:02:08]}  a5 {[%clk 0:01:57]} 16. g4 {[%clk 0:01:59]}  b4 {[%clk 0:01:08]} 17. Na4 {[%clk 0:01:59]}  c5 {[%clk 0:01:05]} 18. g5 {[%clk 0:01:30]}  Bxd4 {[%clk 0:00:54]} 19. Rxf8+ {[%clk 0:01:28]}  Qxf8 {[%clk 0:00:48]} 20. Bxe6+ {[%clk 0:01:10]}  Bxe6 {[%clk 0:00:46]} 21. Bxd4 {[%clk 0:01:10]}  cxd4 {[%clk 0:00:35]} 22. Nxd4 {[%clk 0:01:11]}  Bg4 {[%clk 0:00:29]} 23. Nc5 {[%clk 0:01:02]}  Nc6 {[%clk 0:00:19]} 24. Nxc6 {[%clk 0:00:59]}  Qxc5 {[%clk 0:00:18]} 25. Qxd5+ {[%clk 0:00:33]}  Qxd5 {[%clk 0:00:17]} 26. Ne7+ {[%clk 0:00:34]}  Kh8 {[%clk 0:00:06]} 27. Nxd5 {[%clk 0:00:34]}  Bf3 {[%clk 0:00:05]} 28. Re1 {[%clk 0:00:25]}  Bxd5 {[%clk 0:00:05]} 29. h5 {[%clk 0:00:24]}  Rc8 {[%clk 0:00:04]} 30. Re5 {[%clk 0:00:22]}  Bf7 {[%clk 0:00:04]} 31. h6 {[%clk 0:00:21]}  Bg6 {[%clk 0:00:04]} 32. Rxa5 {[%clk 0:00:19]}  gxh6 {[%clk 0:00:04]} 33. gxh6 {[%clk 0:00:18]}  Bxc2 {[%clk 0:00:03]} 34. Kd2 {[%clk 0:00:17]}  Bb1 {[%clk 0:00:03]} 35. a4 {[%clk 0:00:13]}  bxa3 {[%clk 0:00:03]} 36. bxa3 {[%clk 0:00:14]}  Bg6 {[%clk 0:00:02]} 37. Ra7 {[%clk 0:00:14]}  Kg8 {[%clk 0:00:02]} 38. a4 {[%clk 0:00:14]}  Kf8 {[%clk 0:00:03]} 39. a5 {[%clk 0:00:14]}  Rd8+ {[%clk 0:00:03]} 40. Ke3 {[%clk 0:00:14]}  Re8+ {[%clk 0:00:03]} 41. Kf4 {[%clk 0:00:14]}  Re7 {[%clk 0:00:04]} 42. Ra8+ {[%clk 0:00:12]}  Kf7 {[%clk 0:00:04]} 43. a6 {[%clk 0:00:13]}  Re4+ {[%clk 0:00:04]} 44. Kg5 {[%clk 0:00:13]}  Re5+ {[%clk 0:00:04]} 45. Kf4 {[%clk 0:00:13]}  Rf5+ {[%clk 0:00:05]} 46. Kg4 {[%clk 0:00:13]}  Ra5 {[%clk 0:00:05]} 47. Ra7+ {[%clk 0:00:09]}  Kf6 {[%clk 0:00:05]} 48. Kf4 {[%clk 0:00:10]}  Ra4+ {[%clk 0:00:05]} 49. Ke3 {[%clk 0:00:10]}  Ra3+ {[%clk 0:00:04]} 50. Kd4 {[%clk 0:00:10]}  Ra5 {[%clk 0:00:03]} 51. Kc4 {[%clk 0:00:08]}  Kg5 {[%clk 0:00:03]} 52. Kb4 {[%clk 0:00:07]}  Ra1 {[%clk 0:00:03]} 53. Kb5 {[%clk 0:00:06]}  Kxh6 {[%clk 0:00:03]} 54. Re7 {[%clk 0:00:05]}  Bd3+ {[%clk 0:00:03]} 55. Kc5 {[%clk 0:00:05]}  Rxa6 {[%clk 0:00:03]} 0-1


[Site "https://www.chess.com"]